fUSD/lending_fUSD_20240704
["ID","MTS","AMOUNT","RATE_DAILY","PERIOD"]
[331084426,1720071038641,-3121.61111413,0.000215,5]
[331084427,1720071038653,-1271.83438954,0.000215,5]
[331084428,1720071038722,-8047.51184524,0.000215,5]
[331084564,1720071040478,-40713.03440521,0.000215,5]
[331084573,1720071040555,-332.98441238,0.000215,5]
[331084575,1720071040568,-464.24871074,0.000215,5]
[331084584,1720071040650,-2653.19473214,0.000215,5]
[331084587,1720071040676,-8831.01279351,0.000215,5]
[331084590,1720071040689,-493.94658305,0.000215,5]
[331084594,1720071040736,-3937.68135942,0.000215,5]
[331084596,1720071040750,-3652.98037601,0.000215,5]
[331084598,1720071040762,-315.6,0.000215,5]
[331084600,1720071040775,-11505.8443114,0.000215,5]
[331084605,1720071040812,-573.27624306,0.000215,5]
[331084608,1720071040838,-1292.76814614,0.000215,5]
[331084610,1720071040849,-43963.15270638,0.000215,5]
[331084615,1720071040887,-763.47230131,0.000215,5]
[331084617,1720071040899,-555.29,0.000215,5]
[331084653,1720071041262,-74536.41090497,0.000215,5]
[331084883,1720071043576,-973.369812,0.000215,5]
[331084887,1720071043600,-664.50418097,0.000215,5]
[331084889,1720071043611,-1144.36375668,0.000215,5]
[331084895,1720071043664,-489.29187735,0.000215,5]
[331085082,1720071045525,-790.18897835,0.000215,5]
[331085084,1720071045536,-1276.4995102,0.000215,5]
[331085086,1720071045547,-1753.95735098,0.000215,5]
[331085088,1720071045558,-695.84866301,0.000215,5]
[331085091,1720071045570,-31549.19828372,0.000215,5]
[331085093,1720071045581,-1956.9928353,0.000215,5]
[331085095,1720071045592,-24549.31977664,0.000215,5]
[331085097,1720071045603,-4507.50040909,0.000215,5]
[331085100,1720071045614,-2391.02273755,0.000215,5]
[331085102,1720071045626,-403.22850324,0.000215,5]
[331085105,1720071045646,-2859.2004109,0.000215,5]
[331085107,1720071045656,-3799.999993,0.000215,5]
[331085110,1720071045668,-2743.43994,0.000215,5]
[331085112,1720071045679,-412.74691942,0.000215,5]
[331085224,1720071046571,-1420.26035179,0.0002107,2]
[331085227,1720071046581,-75005.05370248,0.000215,5]
[331085230,1720071046593,-1789.07405067,0.000215,5]
[331085243,1720071046661,-335.9197241,0.000215,5]
[331085246,1720071046672,-404.4192757,0.000215,5]
[331085258,1720071046755,-115475.35714232,0.000215,5]
[331085279,1720071046929,-4903.45504488,0.000215,5]
[331085280,1720071046940,-18329.96129806,0.000215,5]
[331085283,1720071047025,-2221.44689245,0.000215,5]
[331085285,1720071047037,-4506.06258621,0.000215,5]
[331085287,1720071047048,-1473.9,0.000215,5]
[331085289,1720071047059,-817.82184304,0.000215,5]
[331085296,1720071047116,-1207.68777187,0.000215,5]
[331085298,1720071047128,-276.90558802,0.000215,5]
[331085300,1720071047140,-1033.59720923,0.000215,5]
[331085302,1720071047151,-9491.1,0.000215,5]
[331085391,1720071287629,968.31897619,0.00011199,2]
[331085394,1720071371295,849.14809043,0.00011199,2]
[331085395,1720071398059,482.94283221,0.00011199,2]
[331085402,1720071498438,380.32591715,0.00011199,2]
[331085405,1720071611153,184.45017056,0.00011199,2]
[331085406,1720071611183,352.02168205,0.00011199,2]
[331085407,1720071611215,540.19128117,0.00011199,2]
[331085410,1720071944294,155.67725365,0.00011199,2]
[331085414,1720072030895,1814.74643806,0.00011199,2]
[331085415,1720072030926,3680.98742439,0.00011199,2]
[331085416,1720072030948,2000.0,0.00011199,2]
[331085417,1720072030968,2000.0,0.00011199,2]
[331085418,1720072030988,2000.0,0.00011199,2]
[331085419,1720072031008,2000.0,0.00011199,2]
[331085420,1720072031029,1783.92399479,0.00011199,2]
[331085444,1720072231607,-676.1,0.00013574,2]
[331085445,1720072231704,-322.21264001,0.00013574,2]
[331085446,1720072231713,-173.33,0.00013647,2]
[331085447,1720072231723,-236.55880153,0.00013865,2]
[331085448,1720072231735,-295.75119847,0.00013865,2]
[331085449,1720072231746,-456.59911909,0.0001387,2]
[331085450,1720072231796,-776.25293792,0.0001387,2]
[331085451,1720072231805,-165.3,0.00013875,2]
[331085452,1720072231814,-1933.0353963,0.00013875,2]
[331085453,1720072231824,-2182.275,0.000139,2]
[331085454,1720072231836,-2096.18968623,0.000139,2]
[331085455,1720072231848,-7991.80911377,0.000139,2]
[331085456,1720072231857,-3640.18706292,0.00013929,2]
[331085457,1720072231866,-8191.31552036,0.00013929,2]
[331085458,1720072231878,-7889.99699777,0.00013929,2]
[331085459,1720072231887,-539.68240138,0.00013929,2]
[331085460,1720072231897,-274.97,0.00013939,2]
[331085461,1720072231906,-463.05422615,0.00014,2]
[331085462,1720072231915,-490987.03946075,0.00014,2]
[331085463,1720072231924,-214.82,0.00014029,2]
[331085464,1720072231934,-405.21,0.00014125,2]
[331085465,1720072231944,-250.0,0.0001421,2]
[331085466,1720072231955,-165.3,0.00014237,2]
[331085467,1720072231964,-520.0,0.00014391,2]
[331085468,1720072231974,-200.0,0.000145,5]
[331085469,1720072231983,-250.0,0.00014566,2]
[331085470,1720072231992,-165.3,0.00014598,2]
[331085472,1720072232002,-500.0,0.000146,5]
[331085474,1720072232011,-700.0,0.000147,5]
[331085476,1720072232020,-1000.0,0.000148,5]
[331085478,1720072232030,-405.21,0.00014832,2]
[331085480,1720072232039,-3664.96533814,0.000149,2]
[331085482,1720072232048,-1300.0,0.000149,5]
[331085484,1720072232058,-165.96515824,0.00014909,2]
[331085485,1720072232067,-313.28423942,0.00014909,2]
[331085487,1720072232076,-193.6668506,0.00014909,2]
[331085490,1720072232089,-3640.18706287,0.00014925,2]
[331085492,1720072232099,-16081.31251812,0.00014925,2]
[331085494,1720072232108,-179.13721,0.00014984,2]
[331085496,1720072232118,-171.52455343,0.0001499,2]
[331085498,1720072232129,-432.86496845,0.00014999,2]
[331085500,1720072232138,-468.90978871,0.00014999,2]
[331085502,1720072232148,-150.0,0.00014999,2]
[331085504,1720072232157,-150.0,0.00014999,7]
[331085506,1720072232166,-154.89292255,0.00014999,7]
[331085508,1720072232176,-300.0,0.00014999,2]
[331085510,1720072232185,-465018.17823852,0.00015,2]
[331085512,1720072232198,-766.70047964,0.00015,2]
[331085514,1720072232209,-967.82884568,0.00015,2]
[331085517,1720072232220,-2192.2403808,0.00015,2]
[331085519,1720072232231,-2101.31285773,0.00015,2]
[331085521,1720072232246,-388.75153222,0.00015,2]
[331085524,1720072232257,-1533.16988502,0.00015,2]
[331085526,1720072232268,-10808.08059513,0.00015,2]
[331085594,1720072237570,-499.74689577,0.00015,2]
[331085596,1720072237587,-500.0,0.00015,2]
[331085597,1720072237645,-33786.12977595,0.00015,2]
[331085598,1720072237916,-13103.23886652,0.00015,2]
[331085599,1720072237929,-13563.02965636,0.00015,2]
[331085600,1720072237941,-18946.04264147,0.00015,2]
[331085601,1720072237952,-509.16789362,0.00015,2]
[331085602,1720072237963,-354.451,0.00015,2]
[331085603,1720072237975,-52544.39856408,0.00015,2]
[331085604,1720072237985,-6046.96421405,0.00015,2]
[331085605,1720072237996,-1598.10063883,0.00015,2]
[331085770,1720072239834,-691.07995768,0.00015,2]
[331085772,1720072239847,-934.92557051,0.00015,2]
[331085774,1720072239861,-15846.9219492,0.00015,2]
[331085776,1720072239873,-6739.52736786,0.00015,2]
[331085783,1720072239947,-2551.19269627,0.00015,2]
[331085785,1720072239959,-3635.24585208,0.00015,2]
[331085807,1720072240216,-344394.21199941,0.00015,2]
[331086055,1720072242757,-321.74942737,0.00013929,2]
[331086057,1720072242766,-333.34494227,0.00014909,2]
[331086171,1720072243927,-4770.53036311,0.00014909,2]
[331086173,1720072243937,-10434.26781311,0.00015,2]
[331086382,1720072245915,-175.2301,0.000139,2]
[331086384,1720072245924,-405.53789923,0.00015,2]
[331086386,1720072245936,-542.39928832,0.00015,2]
[331086388,1720072245947,-500.0,0.00015,2]
[331086397,1720072246027,-4244.81242003,0.00015,2]
[331086400,1720072246038,-1100.8999995,0.00015,2]
[331086402,1720072246049,-1801.94717962,0.00015,2]
[331086404,1720072246061,-2175.10780721,0.00015,2]
[331086412,1720072246135,-1208.0,0.00015,2]
[331086414,1720072246147,-205480.45572303,0.00015,2]
[331086843,1720072380787,216.07600521,0.00011199,2]
[331086844,1720072380810,700.0,0.00011199,2]
[331086845,1720072380837,11883.03287322,0.00011199,2]
[331086846,1720072397395,10543.72975915,0.00011199,2]
[331086847,1720072415863,4634.81083215,0.00011199,2]
[331086848,1720072420681,2562.62595505,0.00011199,2]
[331086849,1720072421755,6848.80838717,0.00011199,2]
[331086850,1720072427594,3021.92268944,0.00011199,2]
[331086851,1720072438039,5599.94548789,0.00011199,2]
[331086852,1720072450074,221.66301085,0.00011199,2]
[331086853,1720072508469,1630.02206846,0.00011199,2]
[331086854,1720072519244,1133.92751376,0.00011199,2]
[331086855,1720072527326,955.85753929,0.00011199,2]
[331086856,1720072532638,1305.34652224,0.00011199,2]
[331086857,1720072547768,1269.62890364,0.00011199,2]
[331086858,1720072556603,720.44278656,0.00011199,2]
[331086859,1720072569499,661.02099471,0.00011199,2]
[331086860,1720072577937,1404.38517432,0.00011199,2]
[331086861,1720072579973,7652.55934774,0.0002465,60]
[331086862,1720072638414,233.01048022,0.00011199,2]
[331086863,1720072657886,159.78064478,0.00011199,2]
[331086864,1720072698895,442.2300906,0.00011199,2]
[331086865,1720072701558,544.30071955,0.00011199,2]
[331086866,1720072708834,155.76801157,0.00011199,2]
[331086867,1720072766948,690.1937764,0.00011199,2]
[331086868,1720072894016,1629.34600816,0.00011199,2]
[331086869,1720072965995,581.06,0.00010791,2]
[331086873,1720073166163,163.67705412,0.00011199,2]
[331086874,1720073222471,284.58,0.00010959,2]
[331086888,1720073318002,1551.74294588,0.00011199,2]
[331086889,1720073318024,2000.0,0.00011199,2]
[331086890,1720073318048,1834.53755535,0.00011199,2]
[331086891,1720073351039,165.46244465,0.00011199,2]
[331086892,1720073351059,2000.0,0.00011199,2]
[331086893,1720073351098,5671.56215341,0.00011199,2]
[331086900,1720073431783,-460.9395,0.00012173,2]
[331086901,1720073431793,-186.67,0.00012252,2]
[331086902,1720073431802,-920.77582229,0.00012273,2]
[331086903,1720073431814,-905.34153942,0.00012273,2]
[331086904,1720073431826,-372.73987664,0.00012273,2]
[331086905,1720073431835,-187.46246046,0.00012282,2]
[331086906,1720073431909,-628.53753954,0.00012282,2]
[331086907,1720073431919,-250.0,0.00012708,2]
[331086908,1720073431930,-250.0,0.00012717,2]
[331086909,1720073431940,-200.0,0.00012742,2]
[331086910,1720073431950,-181.28,0.00012764,2]
[331086911,1720073431959,-156.28,0.000128,2]
[331086912,1720073431968,-300.0,0.00012809,2]
[331086913,1720073431979,-23807.18,0.0001281,2]
[331086914,1720073431988,-156.28,0.0001284,2]
[331086915,1720073431997,-156.28,0.00012879,2]
[331086916,1720073432007,-156.28,0.00012918,2]
[331086917,1720073432017,-156.28,0.00012957,2]
[331086918,1720073432026,-156.28,0.00012997,2]
[331086919,1720073432036,-156.28,0.00013036,2]
[331086920,1720073432045,-575.0,0.00013039,2]
[331086921,1720073432054,-581.06,0.00013055,2]
[331086922,1720073432064,-156.28,0.00013075,2]
[331086923,1720073432073,-156.28,0.00013114,2]
[331086924,1720073432082,-156.28,0.00013153,2]
[331086925,1720073432091,-156.28,0.00013193,2]
[331086926,1720073432100,-156.28,0.00013232,2]
[331086927,1720073432109,-150.0,0.00013271,2]
[331086928,1720073432119,-156.28,0.00013271,2]
[331086929,1720073432128,-156.28,0.0001331,2]
[331086930,1720073432137,-167.46,0.00013335,2]
[331086931,1720073432146,-156.28,0.0001335,2]
[331086932,1720073432154,-156.28,0.00013389,2]
[331086934,1720073432163,-150.99,0.00013399,2]
[331086935,1720073432172,-156.28,0.00013428,2]
[331086938,1720073432182,-156.28,0.00013467,2]
[331086940,1720073432192,-1901.41719483,0.00013472,2]
[331086942,1720073432201,-3112.03617646,0.00013472,2]
[331086943,1720073432210,-1218.1871,0.00013474,2]
[331086945,1720073432219,-41577.118,0.00013474,2]
[331086947,1720073432228,-304.4582,0.00013474,2]
[331086950,1720073432239,-164.16276631,0.00013477,2]
[331086952,1720073432248,-150.0,0.00013488,2]
[331086954,1720073432257,-202.5175247,0.00013564,2]
[331086955,1720073432266,-548113.14984157,0.00013574,2]
[331086957,1720073432275,-2160.77707211,0.00013599,2]
[331086959,1720073432284,-243.12,0.00013699,2]
[331086961,1720073432293,-2751.0,0.00013699,2]
[331086963,1720073432303,-206.82,0.00013699,2]
[331086965,1720073432312,-40950.33537194,0.0001379,2]
[331086967,1720073432321,-5812.88786341,0.00013799,2]
[331086969,1720073432330,-816.0,0.00013817,2]
[331086970,1720073432339,-1281.8936,0.000139,2]
[331086971,1720073432348,-171.35182521,0.000139,2]
[331086973,1720073432357,-400.0,0.000139,5]
[331086974,1720073432366,-32461.93445402,0.00013999,2]
[331086975,1720073432379,-1168.16336712,0.00013999,2]
[331086976,1720073432390,-679.83163208,0.00013999,2]
[331086977,1720073432402,-860.35582076,0.00013999,2]
[331086978,1720073432413,-412.34936408,0.00013999,2]
[331086979,1720073432424,-3361.46006343,0.00013999,2]
[331086980,1720073432435,-1272.24,0.00013999,2]
[331086981,1720073432447,-1062.65487109,0.00013999,2]
[331086982,1720073432458,-17994.43940248,0.00013999,2]
[331086983,1720073432469,-235205.00818995,0.00013999,2]
[331086984,1720073432481,-1381.95190557,0.00013999,2]
[331086985,1720073432492,-431.18512968,0.00013999,2]
[331086986,1720073432503,-36465.1169804,0.00013999,2]
[331086987,1720073432514,-315.0,0.00013999,2]
[331086988,1720073432526,-422.76314946,0.00013999,2]
[331086989,1720073432537,-2478.29101073,0.00013999,2]
[331086990,1720073432548,-849.96717983,0.00013999,2]
[331086991,1720073432559,-650.23905597,0.00013999,2]
[331086992,1720073432573,-3831.00203713,0.00013999,2]
[331086993,1720073432582,-2378.1233349,0.00013999,2]
[331086994,1720073432591,-389.07849929,0.00014,2]
[331086995,1720073432600,-420.0,0.0001405,2]
[331086996,1720073432609,-167.05,0.00014109,2]
[331086997,1720073432618,-243.12,0.00014384,2]
[331086998,1720073432627,-222.39746096,0.00014455,2]
[331086999,1720073432638,-4960.27687155,0.00014523,2]
[331087000,1720073432650,-7800.69533894,0.00014523,2]
[331087001,1720073432665,-1904.50813767,0.00014523,2]
[331087002,1720073432676,-9741.80218521,0.00014523,2]
[331087003,1720073432687,-1395.41908041,0.00014523,2]
[331087004,1720073432700,-2719.05049637,0.00014523,2]
[331087005,1720073432711,-447.53187127,0.00014523,2]
[331087006,1720073432723,-569.99999994,0.00014523,2]
[331087007,1720073432734,-351.899999,0.00014523,2]
[331087008,1720073432745,-1339.32568212,0.00014523,2]
[331087009,1720073432757,-351.68374011,0.00014523,2]
[331087010,1720073432768,-521.97670531,0.00014523,2]
[331087011,1720073432783,-474.46635641,0.00014523,2]
[331087012,1720073432795,-3210.85387545,0.00014523,2]
[331087013,1720073432806,-5160.8450321,0.00014523,2]
[331087014,1720073432815,-400.62434463,0.00014527,2]
[331087015,1720073432824,-5812.88786334,0.00014542,2]
[331087016,1720073432833,-900.0,0.000146,5]
[331087017,1720073432842,-423.09670834,0.00014612,2]
[331087018,1720073432851,-150.84319318,0.00014633,2]
[331087019,1720073432860,-1400.0,0.000147,5]
[331087020,1720073432870,-172.85,0.00014745,2]
[331087021,1720073432879,-1900.0,0.000148,5]
[331087022,1720073432887,-167.05,0.00014815,2]
[331087023,1720073432896,-164.16276631,0.000149,2]
[331087024,1720073432906,-2300.0,0.000149,5]
[331087025,1720073432915,-1954.39802589,0.000149,2]
[331087026,1720073432927,-1705.15669014,0.000149,2]
[331087027,1720073432941,-6112.18143515,0.000149,2]
[331087028,1720073432950,-3402.58353692,0.000149,2]
[331087029,1720073432960,-208.85615962,0.000149,2]
[331087030,1720073432970,-220.05,0.00014904,3]
[331087031,1720073432979,-336.57590688,0.00014926,2]
[331087032,1720073438005,-1824.2011652,0.00014926,2]
[331087033,1720073438015,-164719.01098436,0.00014989,2]
[331087034,1720073438024,-150.0,0.00014994,2]
[331087035,1720073438034,-150.0,0.00014994,2]
[331087036,1720073438043,-300.0,0.00014999,2]
[331087037,1720073438053,-216763.07551601,0.00015,2]
[331087038,1720073438065,-10658.55315889,0.00015,2]
[331087039,1720073438077,-1651.94935281,0.00015,2]
[331087040,1720073438089,-10852.37161413,0.00015,2]
[331087041,1720073438100,-584.18096118,0.00015,2]
[331087042,1720073438113,-2506.77543946,0.00015,2]
[331087043,1720073438125,-2604.69232305,0.00015,2]
[331087044,1720073438136,-7969.17193469,0.00015,2]
[331087045,1720073438148,-3386.27530717,0.00015,2]
[331087046,1720073438160,-18641.9194012,0.00015,2]
[331087047,1720073438172,-1876.900965,0.00015,2]
[331087048,1720073438184,-648.10177974,0.00015,2]
[331087049,1720073438195,-1340.26476761,0.00015,2]
[331087050,1720073438207,-1258.28539142,0.00015,2]
[331087051,1720073438218,-2331.83645623,0.00015,2]
[331087052,1720073438230,-7214.73959698,0.00015,2]
[331087053,1720073438242,-1145.08013776,0.00015,2]
[331087054,1720073438253,-11216.25702667,0.00015,2]
[331087055,1720073438265,-2319.79927077,0.00015,2]
[331087056,1720073438276,-528.39896365,0.00015,2]
[331087057,1720073438288,-290.31856456,0.00015,2]
[331087058,1720073438299,-439.1278183,0.00015,2]
[331087059,1720073438311,-4756.47301503,0.00015,2]
[331087060,1720073438323,-774.98232244,0.00015,2]
[331087061,1720073438339,-31778.36654774,0.00015,2]
[331087062,1720073438350,-5107.21732208,0.00015,2]
[331087063,1720073438362,-18103.1664995,0.00015,2]
[331087064,1720073438375,-2676.10473281,0.00015,2]
[331087065,1720073438389,-6793.64778067,0.00015,2]
[331087066,1720073438401,-619.34200003,0.00015,2]
[331087067,1720073438413,-760.703511,0.00015,2]
[331087068,1720073438430,-4209.38284784,0.00015,2]
[331087069,1720073438442,-785.23100942,0.00015,2]
[331087070,1720073438454,-2662.14219701,0.00015,2]
[331087071,1720073438465,-27447.11317172,0.00015,2]
[331087072,1720073438477,-313.27,0.00015,2]
[331087073,1720073438489,-254.99999,0.00015,2]
[331087076,1720073438500,-1275.36257132,0.00015,2]
[331087078,1720073438512,-5098.60874534,0.00015,2]
[331087080,1720073438525,-413.27020903,0.00015,2]
[331087082,1720073438536,-484.04490237,0.00015,2]
[331087084,1720073438548,-5751.94436489,0.00015,2]
[331087086,1720073438560,-765.33275581,0.00015,2]
[331087087,1720073438572,-1061.95558653,0.00015,2]
[331087088,1720073438584,-536.3194009,0.00015,2]
[331087215,1720073439976,-145585.00560603,0.00015,2]
[331087230,1720073440113,-1179.86580013,0.00015,2]
[331087232,1720073440124,-489.59093316,0.00015,2]
[331087234,1720073440135,-583.612171,0.00015,2]
[331087236,1720073440147,-753.000003,0.00015,2]
[331087239,1720073440159,-52877.57373107,0.00015,2]
[331087246,1720073440222,-3697.41473214,0.00015,2]
[331087249,1720073440235,-493.92625869,0.00015,2]
[331087251,1720073440246,-11612.2189743,0.00015,2]
[331087253,1720073440257,-16175.59929879,0.00015,2]
[331087255,1720073440269,-435.67082283,0.00015,2]
[331087265,1720073440352,-14269.17746485,0.00015,2]
[331087267,1720073440364,-83832.2570241,0.00015,2]
[331087270,1720073440375,-359.73330817,0.00015,2]
[331087272,1720073440386,-470.90351734,0.00015,2]
[331087274,1720073440397,-1363.54262393,0.00015,2]
[331087284,1720073440487,-454.18508886,0.00015,2]
[331087773,1720073445367,-660.33561149,0.00015,2]
[331087775,1720073445378,-269.50157283,0.00015,2]
[331087777,1720073445389,-1177.79008959,0.00015,2]
[331087779,1720073445400,-329.70014336,0.00015,2]
[331087813,1720073445978,-6363.65315546,0.00015,2]
[331087816,1720073445990,-364.40324563,0.00015,2]
[331087819,1720073446320,-2580.0,0.00015,2]
[331087820,1720073446555,-7384.01856,0.00015,2]
[331087936,1720073512761,2000.0,0.00011097,2]
[331087937,1720073512781,2000.0,0.00011097,2]
[331087938,1720073512802,2000.0,0.00011097,2]
[331087939,1720073512822,2000.0,0.00011097,2]
[331087940,1720073512845,283611.75881991,0.00011097,2]
[331087942,1720073572237,1600.0,0.00011097,2]
[331087943,1720073572262,18227.55343335,0.00011097,2]
[331087944,1720073582501,300.47826733,0.00011097,2]
[331087945,1720073664756,795.10076214,0.00011097,2]
[331087948,1720073732692,959.41985393,0.00011199,2]
[331087949,1720073741896,955.85753929,0.00011199,2]
[331087951,1720073803799,163.20559823,0.00011199,2]
[331087952,1720073838506,366.025366,0.00011199,2]
[331087953,1720073842864,156.79357203,0.00011199,2]
[331087954,1720073917057,159.06957682,0.00011199,2]
[331087956,1720074018075,1903.22472733,0.00011199,2]
[331087957,1720074175313,155.11719868,0.00011199,2]
[331087958,1720074191746,172.1320514,0.00011199,2]
[331087959,1720074193199,155.41610123,0.00011199,2]
[331087960,1720074207353,232.79014581,0.00011199,2]
[331087961,1720074208372,328.45118823,0.00011199,2]
[331087962,1720074212064,300.06782956,0.00011199,2]
[331087963,1720074221797,163.8115837,0.00011199,2]
[331087964,1720074225617,155.36379132,0.00011199,2]
[331087965,1720074231128,197.7067058,0.00011199,2]
[331087966,1720074242496,155.0,0.00011199,2]
[331087967,1720074246333,160.36976779,0.00011199,2]
[331087968,1720074250328,308.19482801,0.00011199,2]
[331087969,1720074255443,160.6222066,0.00011199,2]
[331087970,1720074257240,156.19862631,0.00011199,2]
[331087971,1720074275430,365.10484834,0.00011199,2]
[331087972,1720074280894,291.11944836,0.00011199,2]
[331087973,1720074305783,400.0,0.00025,60]
[331087974,1720074329333,1263.2464365,0.00011199,2]
[331087976,1720074353921,1505.0441863,0.00026,120]
[331087977,1720074398620,226.16614911,0.00011199,2]
[331087997,1720074517021,-338.15840377,0.00011791,2]
[331087998,1720074517128,-293.52159623,0.00011791,2]
[331087999,1720074517160,-4766.09490348,0.00012073,2]
[331088011,1720074632048,-163.56605059,0.00012173,2]
[331088013,1720074632058,-3264.09631542,0.00013128,2]
[331088014,1720074632072,-155.10723618,0.00013128,2]
[331088015,1720074632082,-250.0,0.00013408,2]
[331088016,1720074632091,-250.0,0.00013408,2]
[331088017,1720074632101,-300.35080219,0.00013451,2]
[331088018,1720074632110,-955.85753929,0.00013472,2]
[331088019,1720074632124,-151.56027566,0.00013488,2]
[331088020,1720074632134,-12236.01,0.00013516,2]
[331088021,1720074632143,-299.99,0.00013516,2]
[331088022,1720074632153,-199.30910961,0.00013516,2]
[331088023,1720074632163,-155.79323828,0.00013516,2]
[331088024,1720074632173,-248.04,0.00013541,2]
[331088025,1720074632183,-499.99,0.00013541,2]
[331088026,1720074632192,-242.43380697,0.00013543,2]
[331088027,1720074632203,-379.089191,0.00013543,2]
[331088028,1720074632212,-242.43380697,0.00013543,2]
[331088029,1720074632222,-497.29,0.00013578,2]
[331088030,1720074632231,-300.62,0.00013673,2]
[331088031,1720074632242,-182.34,0.00013699,2]
[331088032,1720074632256,-413.18,0.00013699,2]
[331088033,1720074632266,-200.0,0.00013699,2]
[331088034,1720074632275,-218.16420677,0.00013736,2]
[331088035,1720074632286,-346.5178534,0.00013736,2]
[331088036,1720074632296,-158.47133143,0.00013736,2]
[331088037,1720074632305,-218.16420677,0.00013736,2]
[331088038,1720074632315,-266.40039063,0.00013759,2]
[331088039,1720074632334,-269.66585557,0.00013759,2]
[331088040,1720074632346,-1000.0,0.0001383,2]
[331088041,1720074632356,-155.0,0.00013999,2]
[331088042,1720074632366,-631.68,0.00014055,2]
[331088043,1720074632376,-264.6200961,0.00014393,2]
[331088044,1720074632390,-2128.88424296,0.00014499,2]
[331088045,1720074632400,-2097.0,0.00014554,2]
[331088046,1720074632410,-182.34,0.00014612,2]
[331088047,1720074632420,-150.0,0.0001473,2]
[331088048,1720074632430,-150.0,0.00014751,2]
[331088049,1720074632440,-150.0,0.00014759,2]
[331088050,1720074632449,-177.37053917,0.00014771,2]
[331088052,1720074632460,-150.0,0.00014792,2]
[331088054,1720074632469,-150.0,0.00014798,2]
[331088056,1720074632480,-150.0,0.00014809,2]
[331088057,1720074632489,-150.0,0.00014812,2]
[331088058,1720074632499,-150.0,0.00014812,2]
[331088059,1720074632508,-150.0,0.00014816,2]
[331088060,1720074632518,-174.64,0.00014829,2]
[331088061,1720074632527,-227.14852012,0.00014849,2]
[331088062,1720074632537,-500.0,0.0001485,2]
[331088063,1720074632547,-500.0,0.0001485,2]
[331088064,1720074632556,-150.0,0.00014881,2]
[331088065,1720074632566,-180.73463682,0.000149,2]
[331088066,1720074632579,-2195.66351281,0.000149,2]
[331088067,1720074632592,-925.38728719,0.000149,2]
[331088068,1720074632601,-6837.29689691,0.000149,2]
[331088069,1720074632613,-22592.65279853,0.000149,2]
[331088070,1720074632625,-297.86256585,0.000149,2]
[331088071,1720074632636,-331.5,0.000149,2]
[331088072,1720074632648,-409.12146104,0.000149,2]
[331088073,1720074632680,-2614.08125678,0.000149,2]
[331088074,1720074632692,-2603.71306986,0.000149,2]
[331088075,1720074632704,-943.26744094,0.000149,2]
[331088076,1720074632717,-574.32971375,0.000149,2]
[331088077,1720074632732,-4192.20479634,0.000149,2]
[331088078,1720074632742,-163.56605059,0.000149,2]
[331088079,1720074632752,-155.67173539,0.000149,2]
[331088080,1720074632762,-4719.93705535,0.000149,2]
[331088081,1720074632774,-1852.97114235,0.000149,2]
[331088082,1720074632789,-514.29235671,0.000149,2]
[331088083,1720074632801,-964.9480099,0.000149,2]
[331088084,1720074632813,-3880.42848261,0.000149,2]
[331088090,1720074638079,-246.77971328,0.00012302,2]
[331088091,1720074638089,-302.68041124,0.00013516,2]
[331088092,1720074638099,-209.58503231,0.00013736,2]
[331088093,1720074638109,-1264.32195748,0.00014634,2]
[331088094,1720074638120,-4019.51726805,0.000149,2]
[331088095,1720074638132,-4301.317335,0.000149,2]
[331088096,1720074638144,-2067.86079862,0.000149,2]
[331088097,1720074638156,-548.096,0.000149,2]
[331088098,1720074638168,-584.51193924,0.000149,2]
[331088099,1720074638180,-251.60714365,0.000149,2]
[331088100,1720074638192,-2644.17619719,0.000149,2]
[331088101,1720074638204,-1773.35208208,0.000149,2]
[331088102,1720074638216,-1169.55400002,0.000149,2]
[331088103,1720074638228,-1264.43557993,0.000149,2]